fUST/lending_fUST_20240919
["ID","MTS","AMOUNT","RATE_DAILY","PERIOD"]
[338502489,1726708241305,-1827.66778454,0.00018531,2]
[338502491,1726708241321,-6242.15839914,0.0001861,2]
[338502493,1726708241329,-2327.43735782,0.00018631,2]
[338502495,1726708241338,-1054.66163353,0.00018643,2]
[338502497,1726708241347,-636.419275,0.00018645,2]
[338502499,1726708241357,-1054.66163351,0.00018648,2]
[338502501,1726708241366,-1054.66163351,0.00018652,2]
[338502503,1726708241375,-1030.25469834,0.00018655,2]
[338502505,1726708241386,-1000.0,0.00018655,2]
[338502507,1726708241395,-1054.66163351,0.00018657,2]
[338502509,1726708241405,-1054.66163351,0.00018661,2]
[338502511,1726708241414,-400.11708857,0.0001869,2]
[338502513,1726708241423,-28943.993835,0.000187,2]
[338502515,1726708241432,-415.29,0.00018721,3]
[338502517,1726708241442,-346.07,0.00018721,3]
[338502519,1726708241451,-173.04,0.00018721,3]
[338502521,1726708241460,-519.14,0.00018721,3]
[338502523,1726708241469,-500.0,0.0001873,2]
[338502525,1726708241478,-500.0,0.0001873,2]
[338502527,1726708241487,-500.0,0.0001873,2]
[338502529,1726708241497,-500.0,0.0001873,2]
[338502531,1726708241506,-157.00215838,0.00018732,2]
[338502533,1726708241515,-180814.07779582,0.00018732,2]
[338502758,1726708243674,-500.0,0.0001873,2]
[338502760,1726708243684,-500.0,0.0001873,2]
[338502762,1726708243693,-500.0,0.0001873,2]
[338502764,1726708243703,-363.91089422,0.0001873,2]
[338502766,1726708243712,-7074.12935518,0.00018732,2]
[338502768,1726708243722,-79645.33914074,0.00018732,2]
[338502772,1726708243755,-173.59896846,0.00018732,2]
[338502775,1726708243767,-2163.2451612,0.00018732,2]
[338504276,1726708708998,622.97,0.00010959,2]
[338504278,1726708873996,311.46,0.00010959,2]
[338504279,1726708884567,259.55,0.00010959,2]
[338504280,1726708895117,216.29,0.00010959,2]
[338504281,1726708905644,180.24,0.00010959,2]
[338504282,1726708916195,150.2,0.00010959,2]
[338504283,1726708926718,751.05,0.00010959,2]
[338504338,1726709432000,-1230.32,0.00017206,2]
[338504339,1726709432009,-250.0,0.00017498,2]
[338504341,1726709432021,-250.0,0.00017546,2]
[338504343,1726709432032,-250.0,0.00017594,2]
[338504345,1726709432042,-250.0,0.00017642,2]
[338504347,1726709432052,-250.0,0.0001769,2]
[338504349,1726709432064,-250.0,0.00017738,2]
[338504351,1726709432073,-250.0,0.00017786,2]
[338504352,1726709432084,-450.091111,0.00017808,2]
[338504353,1726709432094,-250.0,0.00017834,2]
[338504354,1726709432105,-250.0,0.00017882,2]
[338504355,1726709432115,-250.0,0.0001793,2]
[338504356,1726709432127,-250.0,0.00017978,2]
[338504357,1726709432140,-250.0,0.00018026,2]
[338504358,1726709432150,-250.0,0.00018074,2]
[338504359,1726709432161,-250.0,0.00018122,2]
[338504360,1726709432171,-500.0,0.00018145,2]
[338504361,1726709432184,-250.0,0.0001817,2]
[338504362,1726709432196,-250.0,0.00018218,2]
[338504363,1726709432208,-250.0,0.00018266,2]
[338504364,1726709432218,-250.0,0.00018314,2]
[338504365,1726709432228,-250.0,0.00018362,2]
[338504366,1726709432238,-6541.51247239,0.00018392,2]
[338504367,1726709432250,-250.0,0.0001841,2]
[338504368,1726709432260,-300.0,0.00018479,2]
[338504369,1726709432272,-300.0,0.00018479,2]
[338504370,1726709432283,-6084.56859456,0.0001848,2]
[338504371,1726709432293,-2327.43735782,0.0001852,2]
[338504372,1726709432303,-1054.66163353,0.00018531,2]
[338504373,1726709432313,-1000.0,0.00018536,2]
[338504374,1726709432327,-1030.25469834,0.00018542,2]
[338504375,1726709432338,-1054.66163351,0.00018547,2]
[338504376,1726709432353,-1054.66163351,0.00018564,2]
[338504377,1726709432364,-1054.66163351,0.0001858,2]
[338504378,1726709432376,-400.11708857,0.00018592,2]
[338504379,1726709432386,-1054.66163351,0.00018596,2]
[338504380,1726709432397,-71795.55068052,0.00018607,2]
[338504381,1726709432410,-500.0,0.0001862,2]
[338504382,1726709432421,-500.0,0.0001862,2]
[338504383,1726709432433,-500.0,0.0001862,2]
[338504384,1726709432443,-342.16253245,0.0001862,2]
[338504385,1726709432452,-500.0,0.0001862,2]
[338504386,1726709432462,-500.0,0.0001862,2]
[338504387,1726709432472,-500.0,0.0001862,2]
[338504388,1726709432481,-500.0,0.0001862,2]
[338504389,1726709432491,-500.0,0.0001862,2]
[338504390,1726709432502,-500.0,0.0001862,2]
[338504391,1726709432514,-500.0,0.0001862,2]
[338504392,1726709432524,-363.91089422,0.0001862,2]
[338504393,1726709432536,-500.0,0.0001862,2]
[338504394,1726709432546,-500.0,0.0001862,2]
[338504395,1726709432555,-500.0,0.0001862,2]
[338504396,1726709432565,-500.0,0.0001862,2]
[338504397,1726709432574,-500.0,0.0001862,2]
[338504398,1726709432583,-500.0,0.0001862,2]
[338504399,1726709432593,-500.0,0.0001862,2]
[338504400,1726709432602,-500.0,0.0001862,2]
[338504401,1726709432614,-500.0,0.0001862,2]
[338504402,1726709432624,-500.0,0.0001862,2]
[338504403,1726709432635,-500.0,0.0001862,2]
[338504404,1726709432645,-500.0,0.0001862,2]
[338504405,1726709432655,-500.0,0.0001862,2]
[338504406,1726709432665,-500.0,0.0001862,2]
[338504407,1726709432674,-500.0,0.0001862,2]
[338504408,1726709432684,-500.0,0.0001862,2]
[338504409,1726709432693,-500.0,0.0001862,2]
[338504410,1726709432702,-500.0,0.0001862,2]
[338504411,1726709432712,-500.0,0.0001862,2]
[338504412,1726709432723,-500.0,0.0001862,2]
[338504413,1726709432735,-500.0,0.0001862,2]
[338504414,1726709432746,-500.0,0.0001862,2]
[338504415,1726709432756,-500.0,0.0001862,2]
[338504416,1726709432767,-500.0,0.0001862,2]
[338504417,1726709432777,-500.0,0.0001862,2]
[338504418,1726709432787,-500.0,0.0001862,2]
[338504419,1726709432797,-304.53366505,0.0001862,2]
[338504420,1726709432808,-500.0,0.0001862,2]
[338504421,1726709432817,-500.0,0.0001862,2]
[338504422,1726709432829,-500.0,0.0001862,2]
[338504423,1726709432840,-500.0,0.0001862,2]
[338504424,1726709432851,-500.0,0.0001862,2]
[338504425,1726709432862,-500.0,0.0001862,2]
[338504426,1726709432873,-500.0,0.0001862,2]
[338504427,1726709432885,-500.0,0.0001862,2]
[338504428,1726709432895,-500.0,0.0001862,2]
[338504429,1726709432905,-500.0,0.0001862,2]
[338504430,1726709432915,-3395.8479915,0.0001862,2]
[338504431,1726709432926,-3395.8479915,0.0001862,2]
[338504432,1726709432937,-3395.8479915,0.0001862,2]
[338504433,1726709432948,-3395.8479915,0.0001862,2]
[338504434,1726709432960,-3395.8479915,0.0001862,2]
[338504435,1726709432969,-3395.8479915,0.0001862,2]
[338504436,1726709432980,-3395.8479915,0.0001862,2]
[338504437,1726709432992,-3395.8479915,0.0001862,2]
[338504438,1726709433002,-3395.8479915,0.0001862,2]
[338504439,1726709433012,-3395.8479915,0.0001862,2]
[338504440,1726709433022,-3395.8479915,0.0001862,2]
[338504441,1726709433032,-3395.8479915,0.0001862,2]
[338504442,1726709433042,-3395.8479915,0.0001862,2]
[338504443,1726709433052,-3395.8479915,0.0001862,2]
[338504444,1726709433062,-1928.58743133,0.0001862,2]
[338504458,1726709438105,-1467.26056017,0.0001862,2]
[338504459,1726709438116,-674.73943983,0.0001862,2]
[338504468,1726709440015,-2721.10855167,0.0001862,2]
[338504469,1726709440025,-3395.8479915,0.0001862,2]
[338504470,1726709440034,-3395.8479915,0.0001862,2]
[338504471,1726709440043,-3395.8479915,0.0001862,2]
[338504472,1726709440053,-3395.8479915,0.0001862,2]
[338504473,1726709440063,-3395.8479915,0.0001862,2]
[338504474,1726709440072,-3395.8479915,0.0001862,2]
[338504475,1726709440082,-3395.8479915,0.0001862,2]
[338504476,1726709440092,-3395.8479915,0.0001862,2]
[338504477,1726709440101,-3395.8479915,0.0001862,2]
[338504478,1726709440111,-3395.8479915,0.0001862,2]
[338504479,1726709440121,-3395.8479915,0.0001862,2]
[338504480,1726709440132,-3395.8479915,0.0001862,2]
[338504481,1726709440142,-3395.8479915,0.0001862,2]
[338504482,1726709440152,-3395.8479915,0.0001862,2]
[338504483,1726709440162,-3395.8479915,0.0001862,2]
[338504484,1726709440172,-3395.8479915,0.0001862,2]
[338504485,1726709440183,-3395.8479915,0.0001862,2]
[338504486,1726709440197,-3395.8479915,0.0001862,2]
[338504487,1726709440209,-3395.8479915,0.0001862,2]
[338504488,1726709440221,-3395.8479915,0.0001862,2]
[338504489,1726709440233,-3346.4538389,0.0001862,2]
[338504490,1726709440245,-3346.4538389,0.0001862,2]
[338504491,1726709440256,-3346.4538389,0.0001862,2]
[338504492,1726709440265,-3346.4538389,0.0001862,2]
[338504493,1726709440276,-3346.4538389,0.0001862,2]
[338504494,1726709440286,-3346.4538389,0.0001862,2]
[338504495,1726709440296,-3346.4538389,0.0001862,2]
[338504496,1726709440308,-3346.4538389,0.0001862,2]
[338504497,1726709440322,-3346.4538389,0.0001862,2]
[338504498,1726709440332,-3346.4538389,0.0001862,2]
[338504499,1726709440342,-3346.4538389,0.0001862,2]
[338504500,1726709440353,-38239.38927031,0.0001862,5]
[338504501,1726709440365,-157.20473322,0.0001862,2]
[338504502,1726709440375,-94638.08084262,0.00018621,2]
[338504514,1726709443004,-88609.23844186,0.00018621,2]
[338504604,1726709471918,246.72946496,0.00010959,2]
[338504605,1726709471955,435.74053504,0.00010959,2]
[338504619,1726709785052,2224.43,0.00014013,2]
[338504673,1726710454532,-8772.99530327,0.0002,60]
[338504674,1726710454693,-620.0,0.000207,120]
[338504676,1726710454859,-620.0,0.000218,120]
[338504677,1726710454938,-200.0,0.00022,120]
[338504679,1726710471073,-620.0,0.000229,120]
[338504680,1726710471115,-150.0,0.00023,120]
[338504681,1726710471234,-620.0,0.00024,120]
[338504783,1726710638248,-217.8802843,0.00017057,2]
[338504784,1726710638259,-253.0,0.000171,2]
[338504785,1726710638268,-250.0,0.00017314,2]
[338504786,1726710638278,-250.0,0.00017362,2]
[338504787,1726710638287,-250.0,0.00017409,2]
[338504788,1726710638297,-250.0,0.00017457,2]
[338504789,1726710638307,-250.0,0.00017504,2]
[338504790,1726710638316,-250.0,0.00017552,2]
[338504791,1726710638328,-250.0,0.00017599,2]
[338504792,1726710638338,-250.0,0.00017647,2]
[338504793,1726710638347,-165.87495874,0.00017653,2]
[338504794,1726710638356,-250.0,0.00017694,2]
[338504795,1726710638366,-250.0,0.00017742,2]
[338504796,1726710638375,-250.0,0.00017789,2]
[338504797,1726710638385,-300.0,0.00017799,2]
[338504798,1726710638394,-7265.83951513,0.000178,2]
[338504799,1726710638405,-300.0,0.00017805,2]
[338504800,1726710638414,-438.447538,0.00017808,2]
[338504801,1726710638424,-250.0,0.00017837,2]
[338504802,1726710638434,-250.0,0.00017884,2]
[338504803,1726710638443,-153.0,0.00017897,2]
[338504804,1726710638453,-208.739459,0.000179,2]
[338504805,1726710638462,-208.739459,0.000179,2]
[338504806,1726710638472,-157.5412497,0.000179,2]
[338504807,1726710638481,-250.0,0.00017932,2]
[338504808,1726710638491,-250.0,0.00017979,2]
[338504809,1726710638500,-208.739459,0.00018,2]
[338504810,1726710638509,-208.739459,0.00018,2]
[338504811,1726710638519,-208.739459,0.00018,2]
[338504812,1726710638528,-250.0,0.00018027,2]
[338504813,1726710638539,-152.57261841,0.00018045,2]
[338504814,1726710638548,-250.0,0.00018074,2]
[338504815,1726710638557,-250.0,0.00018122,2]
[338504816,1726710638566,-640.92986,0.00018145,2]
[338504817,1726710638575,-250.0,0.00018169,2]
[338504818,1726710638585,-250.0,0.00018217,2]
[338504819,1726710638594,-6541.5124724,0.00018253,2]
[338504820,1726710638604,-1000.0,0.00018607,2]
[338504821,1726710638613,-928.05634738,0.00018615,2]
[338504822,1726710638622,-1000.0,0.0001862,2]
[338504823,1726710638632,-1000.0,0.0001862,2]
[338504824,1726710638641,-1000.0,0.0001862,2]
[338504825,1726710638651,-1000.0,0.0001862,2]
[338504826,1726710638660,-1017.91348688,0.0001862,2]
[338504827,1726710638670,-636.85062952,0.00018627,2]
[338504828,1726710638679,-500.0,0.0001863,2]
[338504829,1726710638689,-500.0,0.0001863,2]
[338504830,1726710638699,-500.0,0.0001863,2]
[338504831,1726710638708,-500.0,0.0001863,2]
[338504832,1726710638718,-500.0,0.0001863,2]
[338504833,1726710638727,-500.0,0.0001863,2]
[338504834,1726710638736,-500.0,0.0001863,2]
[338504835,1726710638746,-500.0,0.0001863,2]
[338504836,1726710638755,-500.0,0.0001863,2]
[338504837,1726710638764,-500.0,0.0001863,2]
[338504838,1726710638773,-500.0,0.0001863,2]
[338504839,1726710638783,-500.0,0.0001863,2]
[338504840,1726710638792,-500.0,0.0001863,2]
[338504841,1726710638802,-500.0,0.0001863,2]
[338504842,1726710638812,-500.0,0.0001863,2]
[338504843,1726710638821,-500.0,0.0001863,2]
[338504844,1726710638832,-500.0,0.0001863,2]
[338504845,1726710638842,-500.0,0.0001863,2]
[338504846,1726710638851,-500.0,0.0001863,2]
[338504847,1726710638862,-500.0,0.0001863,2]
[338504848,1726710638871,-500.0,0.0001863,2]
[338504849,1726710638880,-500.0,0.0001863,2]
[338504850,1726710638890,-387.43358393,0.0001863,2]
[338504851,1726710638899,-322.59422544,0.00018636,2]
[338504852,1726710638909,-52374.29003064,0.00018677,2]
[338504860,1726710640256,-70501.47889036,0.00018677,2]
[338504861,1726710640266,-5334.4728635,0.00018677,2]
[338504862,1726710640277,-151.311308,0.00018687,2]
[338504863,1726710640288,-592.407759,0.00018687,2]
[338504864,1726710640301,-151.0,0.00018687,2]
[338504865,1726710640312,-592.407759,0.00018687,2]
[338504866,1726710640322,-151.0,0.00018687,2]
[338504867,1726710640334,-209.71835299,0.00018693,2]
[338504868,1726710640345,-500.0,0.00018693,2]
[338504869,1726710640355,-500.0,0.00018693,2]
[338504870,1726710640365,-500.0,0.00018693,2]
[338504871,1726710640374,-500.0,0.00018693,2]
[338504872,1726710640384,-650.0,0.00018693,2]
[338504873,1726710640393,-500.0,0.00018693,2]
[338504874,1726710640403,-500.0,0.00018693,2]
[338504875,1726710640413,-500.0,0.00018693,2]
[338504876,1726710640423,-500.0,0.00018693,2]
[338504877,1726710640433,-500.0,0.00018693,2]
[338504878,1726710640443,-500.0,0.00018693,2]
[338504879,1726710640452,-500.0,0.00018693,2]
[338504880,1726710640462,-500.0,0.00018693,2]
[338504881,1726710640472,-500.0,0.00018693,2]
[338504882,1726710640484,-500.0,0.00018693,2]
[338504883,1726710640493,-9461.48864299,0.00018695,2]
[338507932,1726710731757,1000.0,0.00024,120]
[338508067,1726710733084,1000.0,0.00024,120]
[338508211,1726710734552,1000.0,0.00024,120]
[338508254,1726710735270,1000.0,0.00024,120]
[338508350,1726710736177,1000.0,0.00024,120]
[338508449,1726710737117,1000.0,0.00024,120]
[338508524,1726710737972,1000.0,0.00024,120]
[338508643,1726710739112,1000.0,0.00024,120]
[338508684,1726710739493,1000.0,0.00024,120]
[338508795,1726710740561,1000.0,0.00024,120]
[338510052,1726710755307,1000.0,0.00024,120]
[338510153,1726710756269,1000.0,0.00024,120]
[338510243,1726710757136,1000.0,0.00024,120]
[338510330,1726710758020,1000.0,0.00024,120]
[338510413,1726710758825,1000.0,0.00024,120]
[338510493,1726710759635,1000.0,0.00024,120]
[338510573,1726710760439,1000.0,0.00024,120]
[338510614,1726710761167,1000.0,0.00024,120]
[338510693,1726710761933,1000.0,0.00024,120]
[338510805,1726710763014,1000.0,0.00024,120]
[338511459,1726710785903,1000.0,0.00024,120]
[338511466,1726710786690,1000.0,0.00024,120]
[338511467,1726710787360,1000.0,0.00024,120]
[338511468,1726710787825,1000.0,0.00024,120]
[338511469,1726710788428,1000.0,0.00024,120]
[338511470,1726710788919,1000.0,0.00024,120]
[338511471,1726710789557,1000.0,0.00024,120]
[338511472,1726710789837,1000.0,0.00024,120]
[338511473,1726710790384,1000.0,0.00024,120]
[338511474,1726710790938,1000.0,0.00024,120]
[338511475,1726710791703,1000.0,0.00024,120]
[338511476,1726710792299,1000.0,0.00024,120]
[338511477,1726710792652,1000.0,0.00024,120]
[338511478,1726710793151,1000.0,0.00024,120]
[338511479,1726710793625,1000.0,0.00024,120]
[338511480,1726710794107,1000.0,0.00024,120]
[338511482,1726710794615,1000.0,0.00024,120]
[338511483,1726710795014,1000.0,0.00024,120]
[338511484,1726710795492,1000.0,0.00024,120]
[338511485,1726710795930,1000.0,0.00024,120]
[338511486,1726710806179,2000.0,0.00024,120]
[338511487,1726710807076,2000.0,0.00024,120]
[338511488,1726710807863,2000.0,0.00024,120]
[338511489,1726710808567,2000.0,0.00024,120]
[338511490,1726710809313,2000.0,0.00024,120]
[338511491,1726710809946,2000.0,0.00024,120]
[338511492,1726710810579,2000.0,0.00024,120]
[338511493,1726710811341,2000.0,0.00024,120]
[338511494,1726710811832,2000.0,0.00024,120]
[338511495,1726710812517,2000.0,0.00024,120]
[338511498,1726710841385,2000.0,0.00024,120]
[338511499,1726710842302,2000.0,0.00024,120]
[338511501,1726710843119,2000.0,0.00024,120]
[338511502,1726710844371,2000.0,0.00024,120]
[338511503,1726710844706,2000.0,0.00024,120]
[338511504,1726710845200,2000.0,0.00024,120]
[338511505,1726710845922,2000.0,0.00024,120]
[338511506,1726710846691,2000.0,0.00024,120]
[338511507,1726710847321,2000.0,0.00024,120]
[338511508,1726710848061,2000.0,0.00024,120]
[338511509,1726710848808,2000.0,0.00024,120]
[338511510,1726710849531,2000.0,0.00024,120]
[338511511,1726710850238,2000.0,0.00024,120]
[338511512,1726710851378,2000.0,0.00024,120]
[338511513,1726710852236,2000.0,0.00024,120]
[338511514,1726710858822,2000.0,0.00024,120]
[338511515,1726710859871,2000.0,0.00024,120]
[338511516,1726710860749,2000.0,0.00024,120]
[338511517,1726710861573,2000.0,0.00024,120]
[338511518,1726710862327,2000.0,0.00024,120]
[338511519,1726710870157,2000.0,0.00024,120]
[338511521,1726710871315,2000.0,0.00024,120]
[338511522,1726710872593,2000.0,0.00024,120]
[338511523,1726710872936,2000.0,0.00024,120]
[338511524,1726710874038,2000.0,0.00024,120]
[338511526,1726710879348,2000.0,0.00024,120]
[338511527,1726710880243,2000.0,0.00024,120]
[338511528,1726710881085,2000.0,0.00024,120]
[338511529,1726710881855,2000.0,0.00024,120]
[338511530,1726710882660,2000.0,0.00024,120]
[338511531,1726710884108,2000.0,0.00024,120]
[338511533,1726710892641,2680.1,0.00024,120]
[338511580,1726711442683,24906.787902,0.00024,120]
[338511595,1726711472835,10000.0,0.00014013,2]
[338511604,1726711503176,400.0,0.00024,120]
[338511609,1726711508805,789.12,0.00024,120]
[338511610,1726711519587,789.12,0.00024,120]
[338511611,1726711529782,789.12,0.00024,120]
[338511612,1726711531049,1000.0,0.00024,120]
[338511614,1726711532082,1000.0,0.00024,120]
[338511615,1726711533091,1000.0,0.00024,120]
[338511616,1726711533658,1000.0,0.00024,120]
[338511617,1726711534430,1000.0,0.00024,120]
[338511618,1726711535089,1000.0,0.00024,120]
[338511619,1726711535721,1000.0,0.00024,120]
[338511620,1726711536387,1000.0,0.00024,120]
[338511621,1726711537039,1000.0,0.00024,120]
[338511622,1726711537389,1000.0,0.00024,120]
[338511623,1726711537957,1000.0,0.00024,120]
[338511624,1726711538475,1000.0,0.00024,120]
[338511625,1726711539450,1000.0,0.00024,120]
[338511626,1726711539547,1000.0,0.00024,120]
[338511627,1726711539971,1000.0,0.00024,120]
[338511628,1726711540309,789.12,0.00024,120]
[338511629,1726711540480,1000.0,0.00024,120]
[338511630,1726711541190,1000.0,0.00024,120]
[338511631,1726711541445,1000.0,0.00024,120]
[338511632,1726711546525,1000.0,0.00024,120]
[338511633,1726711547507,1000.0,0.00024,120]
[338511634,1726711548320,1000.0,0.00024,120]
[338511635,1726711548961,1000.0,0.00024,120]
[338511636,1726711550171,1000.0,0.00024,120]
[338511637,1726711550240,1000.0,0.00024,120]
[338511638,1726711550511,1000.0,0.00024,120]
[338511639,1726711551017,1000.0,0.00024,120]
[338511640,1726711551536,1000.0,0.00024,120]
[338511641,1726711552128,1000.0,0.00024,120]
[338511642,1726711556190,150.0,0.00014013,2]
[338511643,1726711558735,789.12,0.00024,120]
[338511644,1726711560769,1623.17,0.00024,120]
[338511645,1726711569993,1000.0,0.00024,120]
[338511646,1726711571165,1000.0,0.00024,120]
[338511647,1726711571610,1000.0,0.00024,120]
[338511648,1726711572425,1000.0,0.00024,120]
[338511649,1726711573293,1000.0,0.00024,120]
[338511650,1726711574199,1000.0,0.00024,120]
[338511651,1726711575671,1000.0,0.00024,120]
[338511652,1726711576600,1000.0,0.00024,120]
[338511653,1726711577429,1000.0,0.00024,120]
[338511654,1726711578205,1000.0,0.00024,120]
[338511655,1726711578975,1000.0,0.00024,120]
[338511656,1726711579733,1000.0,0.00024,120]
[338511657,1726711580490,1000.0,0.00024,120]
[338511658,1726711581839,1000.0,0.00024,120]
[338511659,1726711582123,1000.0,0.00024,120]
[338511660,1726711582732,1000.0,0.00024,120]
[338511661,1726711583591,1000.0,0.00024,120]
[338511662,1726711584393,1000.0,0.00024,120]
[338511704,1726711838303,-250.0,0.00017482,2]
[338511706,1726711838312,-250.0,0.0001753,2]
[338511708,1726711838322,-250.0,0.00017578,2]
[338511710,1726711838331,-250.0,0.00017626,2]
[338511712,1726711838341,-250.0,0.00017674,2]
[338511714,1726711838350,-250.0,0.00017722,2]
[338511716,1726711838360,-250.0,0.0001777,2]
[338511718,1726711838369,-427.316687,0.00017808,2]
[338511720,1726711838383,-250.0,0.00017818,2]
[338511722,1726711838392,-250.0,0.00017866,2]
[338511724,1726711838401,-250.0,0.00017914,2]
[338511726,1726711838410,-250.0,0.00017962,2]
[338511728,1726711838420,-250.0,0.00018009,2]
[338511730,1726711838429,-1827.96690342,0.00018053,2]
[338511732,1726711838438,-250.0,0.00018057,2]
[338511734,1726711838448,-250.0,0.00018105,2]
[338511736,1726711838459,-250.0,0.00018153,2]
[338511738,1726711838469,-250.0,0.00018201,2]
[338511740,1726711838479,-250.0,0.00018249,2]
[338511742,1726711838488,-1827.9669034,0.00018264,2]
[338511744,1726711838498,-250.0,0.00018297,2]
[338511746,1726711838507,-250.0,0.00018345,2]
[338511748,1726711838516,-250.0,0.00018393,2]
[338511750,1726711838525,-300.0,0.00018428,2]
[338511770,1726711838706,-150.0,0.00018429,2]
[338511773,1726711838722,-300.0,0.00018429,2]
[338511775,1726711838731,-1827.9669034,0.00018475,2]
[338511777,1726711838741,-2000.0,0.000185,5]
[338511778,1726711838751,-12459.44302277,0.00018551,2]
[338511783,1726711838783,-5570.23933624,0.00018551,2]
[338511936,1726711840352,-1981.70264099,0.00018551,2]
[338511938,1726711840363,-1000.0,0.00018575,2]
[338511940,1726711840373,-622.82718651,0.0001858,2]
[338511942,1726711840386,-34413.49901769,0.00018585,2]
[338511944,1726711840395,-835.25071266,0.00018595,2]
[338511946,1726711840404,-500.0,0.0001863,2]
[338511948,1726711840415,-209.71835299,0.00018664,2]
[338511950,1726711840424,-500.0,0.00018664,2]
[338511952,1726711840433,-500.0,0.00018664,2]
[338511954,1726711840443,-500.0,0.00018664,2]
[338511956,1726711840459,-500.0,0.00018664,2]
[338511958,1726711840468,-500.0,0.00018664,2]
[338511960,1726711840478,-500.0,0.00018664,2]
[338511962,1726711840488,-506.61398679,0.00018664,2]
[338511964,1726711840497,-500.0,0.00018664,2]
[338511966,1726711840507,-500.0,0.00018664,2]
[338511968,1726711840516,-500.0,0.00018664,2]
[338511970,1726711840526,-500.0,0.00018664,2]
[338511972,1726711840536,-500.0,0.00018664,2]
[338511974,1726711840545,-500.0,0.00018664,2]
[338511976,1726711840556,-500.0,0.00018664,2]
[338511978,1726711840565,-500.0,0.00018664,2]
[338511980,1726711840575,-500.0,0.00018664,2]
[338511983,1726711840585,-500.0,0.00018664,2]
[338511985,1726711840594,-500.0,0.00018664,2]
[338511986,1726711840603,-500.0,0.00018664,2]
[338511988,1726711840613,-500.0,0.00018664,2]
[338511990,1726711840623,-500.0,0.00018664,2]
[338511992,1726711840633,-500.0,0.00018664,2]
[338511994,1726711840642,-500.0,0.00018664,2]
[338511996,1726711840651,-500.0,0.00018664,2]
[338511998,1726711840660,-500.0,0.00018664,2]
[338512000,1726711840670,-500.0,0.00018664,2]
[338512002,1726711840679,-500.0,0.00018664,2]
[338512004,1726711840688,-500.0,0.00018664,2]
[338512006,1726711840697,-500.0,0.00018664,2]
[338512008,1726711840709,-500.0,0.00018664,2]
[338512010,1726711840719,-500.0,0.00018664,2]
[338512012,1726711840729,-500.0,0.00018664,2]
[338512014,1726711840738,-500.0,0.00018664,2]
[338512016,1726711840748,-500.0,0.00018664,2]
[338512018,1726711840757,-500.0,0.00018664,2]
[338512020,1726711840767,-500.0,0.00018664,2]
[338512022,1726711840777,-600.0,0.00018664,2]
[338512024,1726711840786,-32268.30425623,0.00018664,5]
[338512026,1726711840796,-4357.36942198,0.00018665,2]
[338512029,1726711840808,-13305.39753276,0.00018665,2]
[338512031,1726711840820,-12485.01700004,0.00018665,2]
[338512033,1726711840832,-8623.08448489,0.00018665,2]
[338512205,1726711843366,-8293.9884075,0.00018665,2]
[338512804,1726712320010,7214.21052,0.00024,120]